fUST/lending_fUST_20260124
["ID","MTS","AMOUNT","RATE_DAILY","PERIOD"]
[403183061,1769253046162,-1075.6164,0.00012495,2]
[403183063,1769253046173,-642.73082999,0.00012495,2]
[403183065,1769253046184,-1075.6164,0.00012495,2]
[403183082,1769253046332,-1807.8923049,0.00012495,2]
[403183297,1769253338956,158.0,0.000154,120]
[403183530,1769253728384,159.62665952,0.00011979,2]
[403183595,1769253846059,159.62665952,0.0001196,2]
[403183670,1769254221286,-153.514,0.00012147,2]
[403183671,1769254221317,-180.90583175,0.00012198,2]
[403183672,1769254221345,-293.44993338,0.00012232,2]
[403183673,1769254221375,-129.89234774,0.00012232,2]
[403183674,1769254221451,-370.10765226,0.00012232,2]
[403183693,1769254232246,-500.0,0.00012232,2]
[403183695,1769254232255,-500.0,0.00012369,2]
[403183697,1769254232264,-392.66568301,0.00012369,2]
[403183698,1769254232276,-107.33431699,0.00012369,2]
[403183699,1769254232285,-1132.32,0.00012374,2]
[403183700,1769254232295,-1200.0,0.00012392,2]
[403183701,1769254232304,-216.0,0.00012393,2]
[403183702,1769254232313,-500.0,0.00012394,2]
[403183703,1769254232323,-500.0,0.00012394,2]
[403183704,1769254232332,-316.93522912,0.00012394,2]
[403183705,1769254232340,-8666.76988513,0.00012395,2]
[403183706,1769254232351,-525.06757274,0.00012395,2]
[403183707,1769254232361,-11706.01397739,0.00012395,2]
[403183708,1769254232372,-356.90616913,0.00012395,2]
[403183712,1769254238188,-1169.10946292,0.00012395,2]
[403183713,1769254238201,-968.75395028,0.00012395,2]
[403183714,1769254238294,-980.33551009,0.00012395,2]
[403183754,1769254240385,-273.1553,0.00012395,2]
[403183756,1769254240397,-1896.94416828,0.00012395,2]
[403183758,1769254240408,-3349.70392112,0.00012395,2]
[403184379,1769254250756,-757.76211287,0.00012395,2]
[403184423,1769254520448,446.18,0.00012,2]
[403184689,1769255059626,263.34,0.00012,2]
[403184694,1769255123330,623.71463615,0.00012,2]
[403184708,1769255268752,408.06650106,0.00011966,2]
[403184709,1769255271605,1630.63373824,0.00011966,2]
[403184818,1769255432313,-153.514,0.00012049,2]
[403184819,1769255432323,-177.28771511,0.00012072,2]
[403184820,1769255432332,-300.0,0.00012094,2]
[403184821,1769255432341,-300.0,0.00012094,2]
[403184822,1769255432350,-300.0,0.00012094,2]
[403184823,1769255432359,-300.0,0.00012094,2]
[403184824,1769255432368,-1200.0,0.00012094,2]
[403184825,1769255432377,-153.80161828,0.00012095,2]
[403184826,1769255432386,-500.0,0.00012095,2]
[403184827,1769255432395,-150.0,0.00012095,2]
[403184828,1769255432404,-250.4161072,0.00012095,2]
[403184829,1769255432413,-500.0,0.00012095,2]
[403184830,1769255432423,-155.46210901,0.00012095,2]
[403184831,1769255432431,-174.38406087,0.00012095,2]
[403184832,1769255432441,-500.0,0.00012095,2]
[403184833,1769255432450,-272.35139926,0.00012095,2]
[403184834,1769255432459,-500.0,0.00012095,2]
[403184835,1769255432468,-154.90328398,0.00012095,2]
[403184836,1769255432477,-6146.87056455,0.00012184,2]
[403184837,1769255432492,-914.98005166,0.00012184,2]
[403184838,1769255432503,-311.559,0.00012184,2]
[403184839,1769255432515,-825.0,0.00012184,2]
[403184840,1769255432526,-528.83716301,0.00012184,2]
[403184852,1769255438418,-6382.20423893,0.00012184,2]
[403184853,1769255438431,-940.96792135,0.00012184,2]
[403184854,1769255438440,-150.0,0.00012185,2]
[403184855,1769255438450,-500.0,0.00012185,2]
[403184856,1769255438459,-500.0,0.00012185,2]
[403184857,1769255438469,-500.0,0.00012185,2]
[403184858,1769255438478,-150.0,0.00012185,2]
[403184859,1769255438489,-500.0,0.00012185,2]
[403184860,1769255438498,-18.14944969,0.00012185,2]
[403184861,1769255438510,-481.85055031,0.00012185,2]
[403184862,1769255438520,-500.0,0.00012185,2]
[403184863,1769255438529,-500.0,0.00012185,2]
[403184864,1769255438540,-500.0,0.00012185,2]
[403184865,1769255438549,-500.0,0.00012185,2]
[403184866,1769255438559,-310.04112381,0.00012222,2]
[403184867,1769255438569,-500.0,0.00012232,2]
[403184868,1769255438578,-150.0,0.00012232,2]
[403184869,1769255438588,-500.0,0.00012232,2]
[403184870,1769255438597,-500.0,0.00012232,2]
[403184871,1769255438607,-500.0,0.00012232,2]
[403184872,1769255438617,-1138.55,0.00012258,2]
[403184873,1769255438628,-155.078,0.00012292,2]
[403184874,1769255438638,-208.31534935,0.00012293,2]
[403184875,1769255438647,-500.0,0.00012293,2]
[403184876,1769255438657,-500.0,0.00012293,2]
[403184877,1769255438667,-500.0,0.00012293,2]
[403184878,1769255438677,-500.0,0.00012293,2]
[403184879,1769255438686,-596.33402809,0.00012293,2]
[403184880,1769255438695,-500.0,0.00012293,2]
[403184881,1769255438705,-598.48324127,0.00012293,2]
[403184882,1769255438714,-500.0,0.00012293,2]
[403184883,1769255438723,-501.17687984,0.00012293,2]
[403184884,1769255438732,-500.0,0.00012293,2]
[403184885,1769255438741,-500.0,0.00012293,2]
[403184886,1769255438750,-500.0,0.00012293,2]
[403184887,1769255438761,-500.0,0.00012293,2]
[403184888,1769255438770,-500.0,0.00012293,2]
[403184889,1769255438780,-500.0,0.00012293,2]
[403184890,1769255438789,-500.0,0.00012293,2]
[403184891,1769255438798,-500.0,0.00012293,2]
[403184892,1769255438807,-500.0,0.00012293,2]
[403184893,1769255438816,-500.0,0.00012293,2]
[403184894,1769255438826,-500.0,0.00012293,2]
[403184895,1769255438835,-500.0,0.00012293,2]
[403184896,1769255438844,-500.0,0.00012293,2]
[403184897,1769255438853,-500.0,0.00012293,2]
[403184898,1769255438864,-500.0,0.00012293,2]
[403184899,1769255438873,-500.0,0.00012293,2]
[403184900,1769255438883,-500.0,0.00012293,2]
[403184901,1769255438892,-500.0,0.00012293,2]
[403184902,1769255438901,-418.97356706,0.00012293,2]
[403184903,1769255438913,-81.02643294,0.00012293,2]
[403184904,1769255438923,-500.0,0.00012293,2]
[403184905,1769255438936,-500.0,0.00012293,2]
[403184906,1769255438945,-426.32210873,0.00012293,2]
[403184907,1769255438955,-500.0,0.00012293,2]
[403184908,1769255438965,-500.0,0.00012293,2]
[403184909,1769255438976,-500.0,0.00012293,2]
[403184910,1769255438986,-500.0,0.00012293,2]
[403184911,1769255438996,-500.0,0.00012293,2]
[403184912,1769255439006,-500.0,0.00012293,2]
[403184913,1769255439016,-223.66745166,0.00012293,2]
[403184914,1769255439025,-500.0,0.00012293,2]
[403184915,1769255439034,-500.0,0.00012293,2]
[403184916,1769255439043,-500.0,0.00012293,2]
[403184917,1769255439052,-500.0,0.00012293,2]
[403184918,1769255439062,-110.01547852,0.00012293,2]
[403184919,1769255439073,-389.98452148,0.00012293,2]
[403184920,1769255439087,-471.44507852,0.00012293,2]
[403184921,1769255439102,-28.55492148,0.00012293,2]
[403184922,1769255439111,-500.0,0.00012293,2]
[403184923,1769255439120,-500.0,0.00012293,2]
[403184924,1769255439130,-500.0,0.00012293,2]
[403184925,1769255439139,-359.83820722,0.00012293,2]
[403185248,1769255443593,-140.16179278,0.00012293,2]
[403185250,1769255443602,-421.04219959,0.00012293,2]
[403185309,1769255444138,224.31176224,0.00011966,2]
[403185542,1769255447516,896.3498019,0.00011966,2]
[403185564,1769255579142,-173.935,0.00012049,2]
[403185565,1769255579163,-142.02200701,0.00012171,2]
[403185569,1769255626706,-34.7199538,0.00012171,2]
[403185570,1769255626730,-248.03289908,0.00012222,2]
[403185571,1769255626754,-1138.97,0.00012265,2]
[403185572,1769255626779,-78.95780041,0.00012293,2]
[403185573,1769255626803,-500.0,0.00012293,2]
[403185574,1769255626828,-500.0,0.00012293,2]
[403185575,1769255626852,-500.0,0.00012293,2]
[403185576,1769255626877,-500.0,0.00012293,2]
[403185577,1769255626902,-500.0,0.00012293,2]
[403185578,1769255626927,-500.0,0.00012293,2]
[403185579,1769255626958,-342.78368546,0.00012293,2]
[403185580,1769255626983,-500.0,0.00012293,2]
[403185581,1769255627007,-500.0,0.00012293,2]
[403185582,1769255627034,-272.67,0.00012293,2]
[403185583,1769255627059,-211.3906337,0.00012293,2]
[403185584,1769255627082,-44178.16309716,0.00012293,2]
[403185585,1769255627105,-151.0,0.00012295,2]
[403185586,1769255627355,-192.908756,0.00012295,2]
[403185587,1769255627381,-192.908756,0.00012295,2]
[403185588,1769255627406,-192.908756,0.00012295,2]
[403185589,1769255627429,-192.908756,0.00012295,2]
[403185590,1769255627455,-811327.26461494,0.00012295,2]
[403185591,1769255627478,-501.10242036,0.00012322,2]
[403185592,1769255627508,-150.0,0.00012322,2]
[403185593,1769255627532,-500.0,0.00012322,2]
[403185594,1769255627555,-500.0,0.00012322,2]
[403185595,1769255627578,-150.0,0.00012322,2]
[403185596,1769255627605,-500.0,0.00012322,2]
[403185597,1769255627628,-500.0,0.00012322,2]
[403185598,1769255627650,-500.0,0.00012322,2]
[403185599,1769255627674,-500.0,0.00012322,2]
[403185600,1769255627698,-500.0,0.00012322,2]
[403185601,1769255627721,-500.0,0.00012322,2]
[403185602,1769255627745,-500.0,0.00012369,2]
[403185603,1769255627767,-259.14030444,0.00012369,2]
[403185604,1769255627791,-500.0,0.00012369,2]
[403185605,1769255627813,-519.41821725,0.00012369,2]
[403185606,1769255627837,-1056.226701,0.00012396,2]
[403185607,1769255627862,-1056.226701,0.00012396,2]
[403185608,1769255627885,-1056.226701,0.00012396,2]
[403185609,1769255627908,-1056.226701,0.00012396,2]
[403185610,1769255627932,-151.0,0.00012396,2]
[403185611,1769255627957,-1957.856,0.00012396,2]
[403185612,1769255627980,-151.0,0.00012396,2]
[403185613,1769255628002,-151.0,0.00012396,2]
[403185614,1769255628025,-151.0,0.00012396,2]
[403185615,1769255628048,-151.0,0.00012396,2]
[403185616,1769255628073,-500.0,0.00012396,2]
[403185617,1769255628098,-151.0,0.00012396,2]
[403185618,1769255628123,-151.0,0.00012396,2]
[403185619,1769255628147,-187.78006525,0.00012396,2]
[403185620,1769255628172,-500.0,0.00012396,2]
[403185621,1769255628202,-151.0,0.00012396,2]
[403185622,1769255628229,-194.72792766,0.00012396,2]
[403185623,1769255628253,-500.0,0.00012396,2]
[403185624,1769255628276,-151.0,0.00012396,2]
[403185625,1769255628300,-201.93286099,0.00012396,2]
[403185626,1769255628323,-500.0,0.00012396,2]
[403185627,1769255628345,-238.51246012,0.00012396,2]
[403185628,1769255628371,-209.40437684,0.00012396,2]
[403185629,1769255628398,-500.0,0.00012396,2]
[403185630,1769255628423,-217.15233878,0.00012396,2]
[403185631,1769255628446,-500.0,0.00012396,2]
[403185632,1769255628470,-361.94006549,0.00012396,2]
[403185633,1769255628495,-500.0,0.00012396,2]
[403185634,1769255628518,-187.78006525,0.00012396,2]
[403185635,1769255628541,-500.0,0.00012396,2]
[403185636,1769255628565,-500.0,0.00012396,2]
[403185637,1769255628588,-500.0,0.00012396,2]
[403185638,1769255628612,-500.0,0.00012396,2]
[403185639,1769255628636,-500.0,0.00012396,2]
[403185640,1769255628660,-500.0,0.00012396,2]
[403185641,1769255628683,-500.0,0.00012396,2]
[403185642,1769255628706,-2487.15318209,0.00012396,2]
[403185643,1769255628729,-514.84070869,0.00012396,2]
[403185644,1769255628752,-151.0,0.000124,2]
[403185645,1769255628776,-151.0,0.000124,2]
[403185646,1769255628802,-151.0,0.000124,2]
[403185647,1769255628826,-151.0,0.000124,2]
[403185648,1769255628850,-192.908756,0.00012451,2]
[403185649,1769255628875,-192.908756,0.00012451,2]
[403185650,1769255628902,-192.908756,0.00012451,2]
[403185651,1769255628925,-192.908756,0.00012451,2]
[403185652,1769255628949,-2030.296672,0.00012451,2]
[403185653,1769255628971,-200.0,0.00012459,2]
[403185654,1769255628998,-500.0,0.00012459,2]
[403185655,1769255629022,-500.0,0.00012459,2]
[403185656,1769255629045,-200.64894392,0.00012459,2]
[403185657,1769255629068,-500.0,0.00012459,2]
[403185658,1769255629089,-500.0,0.00012459,2]
[403185659,1769255629111,-500.0,0.00012459,2]
[403185660,1769255629135,-264.18010503,0.00012459,2]
[403185661,1769255629158,-500.0,0.00012459,2]
[403185662,1769255629180,-500.0,0.00012459,2]
[403185663,1769255629209,-177.1348496,0.00012483,2]
[403185664,1769255629232,-290.621884,0.00012495,2]
[403185665,1769255629257,-1056.226701,0.00012495,2]
[403185666,1769255629282,-1056.226701,0.00012495,2]
[403185667,1769255629308,-1056.226701,0.00012495,2]
[403185668,1769255629331,-1056.226701,0.00012495,2]
[403185669,1769255629354,-151.0,0.000125,2]
[403185670,1769255629377,-223.92590858,0.00012506,2]
[403185671,1769255629400,-500.0,0.00012506,2]
[403185672,1769255629423,-2105.41764886,0.00012506,2]
[403185673,1769255629446,-5044.45666935,0.00012559,2]
[403185674,1769255629469,-151.0,0.00012559,2]
[403185675,1769255629494,-192.908756,0.00012559,2]
[403185676,1769255629517,-192.908756,0.00012559,2]
[403185677,1769255629540,-192.908756,0.00012559,2]
[403185678,1769255629564,-192.908756,0.00012559,2]
[403185679,1769255629740,-2183.31810187,0.00012561,2]
[403185680,1769255629765,-502.02297164,0.00012596,2]
[403185681,1769255629789,-500.0,0.00012596,2]
[403185682,1769255629814,-500.0,0.00012596,2]
[403185683,1769255629840,-500.0,0.00012596,2]
[403185684,1769255629862,-500.0,0.00012596,2]
[403185686,1769255629888,-500.0,0.00012596,2]
[403185687,1769255629911,-500.46163499,0.00012596,2]
[403185688,1769255629939,-151.0,0.00012596,2]
[403185689,1769255629963,-1056.226701,0.00012616,2]
[403185690,1769255629994,-1056.226701,0.00012616,2]
[403185691,1769255630020,-1056.226701,0.00012616,2]
[403185692,1769255630044,-1056.226701,0.00012616,2]
[403185693,1769255630070,-2264.10087164,0.00012616,2]
[403185694,1769255630094,-300.81623099,0.00012643,2]
[403185695,1769255630120,-2347.87260389,0.00012671,2]
[403185696,1769255630145,-305.4702683,0.000127,2]
[403185697,1769255630172,-2434.74389024,0.00012726,2]
[403185698,1769255630195,-281.517554,0.00012733,2]
[403185699,1769255630221,-150.0,0.00012733,2]
[403185700,1769255630245,-501.97985973,0.00012733,2]
[403185701,1769255630268,-502.09687579,0.00012733,2]
[403185702,1769255630294,-500.0,0.00012733,2]
[403185703,1769255630317,-151.0,0.00012733,2]
[403185704,1769255630340,-192.908756,0.00012733,2]
[403185705,1769255630363,-192.908756,0.00012733,2]
[403185707,1769255630387,-192.908756,0.00012733,2]
[403185708,1769255630412,-192.908756,0.00012733,2]
[403185709,1769255630435,-238.44784753,0.00012781,2]
[403185710,1769255630458,-800.0,0.00012786,2]
[403185711,1769255630481,-1013.82,0.000128,3]
[403185712,1769255630504,-413.82332359,0.00012803,2]
[403185713,1769255630527,-800.0,0.0001281,2]
[403185714,1769255630550,-800.0,0.00012813,2]
[403185715,1769255630572,-800.0,0.00012825,2]
[403185716,1769255630596,-385.79666785,0.00012853,2]
[403185717,1769255630619,-500.0,0.0001287,2]
[403185718,1769255630643,-151.0,0.000129,2]
[403185719,1769255630665,-800.0,0.00012903,2]
[403185720,1769255630689,-526.04477486,0.00012908,2]
[403185721,1769255630712,-177.34508648,0.0001291,2]
[403185722,1769255630734,-180.0,0.0001291,2]
[403185723,1769255630760,-1056.226701,0.0001291,2]
[403185724,1769255630789,-1056.226701,0.0001291,2]
[403185725,1769255630813,-1056.226701,0.0001291,2]
[403185726,1769255630838,-1056.226701,0.0001291,2]
[403185727,1769255630867,-156.70093233,0.00012944,2]
[403185728,1769255630902,-2579.17784983,0.00012944,2]
[403185729,1769255630926,-533.88981491,0.00012944,2]
[403185730,1769255630949,-244.43871546,0.0001298,2]
[403185734,1769255654202,-260.64252342,0.00012193,2]
[403185735,1769255656966,-153.64747658,0.00012193,2]
[403185736,1769255659021,-234.27572637,0.00012193,2]
[403185801,1769256004013,157.3122286,0.0001196,2]
[403185802,1769256026751,-198.42631924,0.000121,2]
[403185803,1769256026788,-123.11151839,0.00012186,2]
[403185804,1769256055970,-198.42631924,0.00012186,2]
[403185809,1769256102506,173.936,0.00011949,2]
[403185929,1769256435847,-158.7410554,0.000121,2]
[403185930,1769256435875,-500.0,0.00012185,2]
[403185931,1769256435902,-500.0,0.00012185,2]
[403185932,1769256435925,-465.3251252,0.00012185,2]
[403185933,1769256435954,-500.0,0.00012185,2]
[403185934,1769256435979,-602.38999838,0.00012185,2]
[403185935,1769256436009,-500.0,0.00012185,2]
[403185936,1769256436036,-500.0,0.00012185,2]
[403185937,1769256436061,-500.0,0.00012185,2]
[403185938,1769256436088,-500.0,0.00012185,2]
[403185939,1769256436114,-500.0,0.00012185,2]
[403185940,1769256436141,-500.0,0.00012185,2]
[403185941,1769256436165,-500.0,0.00012185,2]
[403185942,1769256436191,-500.0,0.00012185,2]
[403185943,1769256436221,-500.0,0.00012185,2]
[403185944,1769256436247,-500.0,0.00012185,2]
[403185945,1769256436274,-500.0,0.00012185,2]
[403185946,1769256436300,-500.0,0.00012185,2]
[403185947,1769256436327,-500.0,0.00012185,2]
[403185948,1769256436353,-180.39564575,0.00012185,2]
[403185949,1769256436378,-500.0,0.00012185,2]
[403185950,1769256436404,-500.0,0.00012185,2]
[403185951,1769256436428,-479.0774841,0.00012185,2]
[403185952,1769256436454,-500.0,0.00012185,2]
[403185953,1769256436480,-500.0,0.00012185,2]
[403185954,1769256436506,-500.0,0.00012185,2]
[403185955,1769256436532,-500.0,0.00012185,2]
[403185956,1769256436558,-500.0,0.00012185,2]
[403185957,1769256436583,-500.0,0.00012185,2]
[403185958,1769256436610,-500.0,0.00012185,2]
[403185959,1769256436655,-500.0,0.00012185,2]
[403185960,1769256436681,-500.0,0.00012185,2]
[403185961,1769256436707,-333.69644948,0.00012185,2]
[403185962,1769256436734,-500.0,0.00012185,2]
[403185963,1769256436760,-500.0,0.00012185,2]
[403185964,1769256436784,-300.0,0.00012185,2]
[403185965,1769256436809,-300.0,0.00012185,2]
[403185966,1769256436835,-300.0,0.00012185,2]
[403185967,1769256436862,-1200.0,0.00012185,2]
[403185968,1769256436886,-1732.80549714,0.00012186,2]
[403185969,1769256436911,-2487.15318209,0.00012186,2]
[403185970,1769256436935,-170.46961157,0.00012186,2]
[403185971,1769256436961,-500.0,0.00012186,2]
[403185972,1769256436986,-500.0,0.00012186,2]
[403185973,1769256437012,-500.0,0.00012186,2]
[403185974,1769256437037,-514.84070869,0.00012186,2]
[403185975,1769256437063,-500.0,0.00012186,2]
[403185976,1769256437089,-500.0,0.00012186,2]
[403185977,1769256437113,-500.0,0.00012186,2]
[403185978,1769256437139,-500.0,0.00012186,2]
[403185979,1769256437163,-500.0,0.00012186,2]
[403185980,1769256437188,-500.0,0.00012186,2]
[403185981,1769256437212,-500.0,0.00012186,2]
[403185982,1769256437238,-500.0,0.00012186,2]
[403185983,1769256437266,-500.0,0.00012186,2]
[403185984,1769256437291,-500.0,0.00012186,2]
[403185985,1769256437315,-500.0,0.00012186,2]
[403185986,1769256437340,-173.20712159,0.00012188,2]
[403185987,1769256437377,-969101.89812061,0.00012193,2]
[403185988,1769256465421,1132.73,0.00011438,2]
[403186013,1769256632775,-592.0,0.00012193,2]
[403186014,1769256632785,-1373.65935439,0.00012193,2]
[403186015,1769256632796,-169.74297916,0.00012197,2]
[403186016,1769256632806,-208.96,0.000122,2]
[403186017,1769256632820,-1200.0,0.00012435,2]
[403186018,1769256632829,-300.0,0.00012436,2]
[403186019,1769256632839,-300.0,0.00012436,2]
[403186020,1769256632848,-300.0,0.00012436,2]
[403186021,1769256632858,-300.0,0.00012436,2]
[403186022,1769256632868,-300.0,0.00012436,2]
[403186023,1769256632878,-300.0,0.00012436,2]
[403186024,1769256632888,-300.0,0.00012436,2]
[403186025,1769256632898,-24.42971581,0.00012436,2]
[403186026,1769256632910,-275.57028419,0.00012436,2]
[403186027,1769256632919,-300.0,0.00012436,2]
[403186028,1769256632929,-300.0,0.00012436,2]
[403186029,1769256632939,-300.0,0.00012436,2]
[403186030,1769256632948,-259.70203415,0.00012436,2]
[403186053,1769256638715,-40.29796585,0.00012436,2]
[403186054,1769256638724,-300.0,0.00012436,2]
[403186055,1769256638734,-300.0,0.00012436,2]
[403186056,1769256638743,-300.0,0.00012436,2]
[403186057,1769256638756,-600.0,0.00012436,2]
[403186058,1769256638765,-14.01253805,0.00012447,2]
[403186084,1769256640814,-1104.29746195,0.00012447,2]
[403186087,1769256640824,-500.0,0.00012623,2]
[403186089,1769256640835,-2487.15318209,0.00012743,2]
[403186090,1769256640844,-500.0,0.00012749,2]
[403186092,1769256640853,-275.45305379,0.00012749,2]
[403186094,1769256640862,-242.26618286,0.00012749,2]
[403186096,1769256640872,-648.18849439,0.00012749,2]
[403186099,1769256640882,-10994.2589354,0.00012751,2]
[403186101,1769256640892,-500.0,0.0001276,2]
[403186103,1769256640901,-150.0,0.00012897,2]
[403186105,1769256640910,-3456.91798718,0.00013025,2]
[403186107,1769256640919,-186.52259371,0.00013116,2]
[403186109,1769256640929,-500.0,0.00013117,2]
[403186110,1769256640939,-500.0,0.00013117,2]
[403186113,1769256640948,-500.0,0.00013117,2]
[403186115,1769256640957,-500.0,0.00013117,2]
[403186116,1769256640967,-500.0,0.00013117,2]
[403186119,1769256640976,-500.0,0.00013117,2]
[403186121,1769256640986,-514.84070869,0.00013117,2]
[403186122,1769256640996,-500.0,0.00013117,2]
[403186124,1769256641005,-500.0,0.00013117,2]
[403186126,1769256641015,-500.0,0.00013117,2]
[403186128,1769256641025,-500.0,0.00013117,2]
[403186130,1769256641034,-500.0,0.00013117,2]
[403186132,1769256641043,-500.0,0.00013117,2]
[403186135,1769256641053,-500.0,0.00013117,2]
[403186137,1769256641062,-500.0,0.00013117,2]
[403186138,1769256641071,-348.0,0.00013125,2]
[403186140,1769256641081,-348.0,0.00013125,2]
[403186143,1769256641091,-348.0,0.00013125,2]
[403186144,1769256641100,-348.0,0.00013125,2]
[403186146,1769256641109,-348.0,0.00013125,2]
[403186148,1769256641118,-348.0,0.00013125,2]
[403186151,1769256641127,-348.0,0.00013125,2]
[403186153,1769256641136,-348.0,0.00013125,2]
[403186154,1769256641146,-348.0,0.00013125,2]
[403186157,1769256641155,-348.0,0.00013125,2]
[403186158,1769256641164,-348.0,0.00013125,2]
[403186161,1769256641173,-348.0,0.00013125,2]
[403186162,1769256641182,-348.0,0.00013125,2]
[403186164,1769256641191,-348.0,0.00013125,2]
[403186166,1769256641201,-348.0,0.00013125,2]
[403186168,1769256641211,-348.0,0.00013125,2]
[403186170,1769256641221,-348.0,0.00013125,2]
[403186173,1769256641231,-348.0,0.00013125,2]
[403186174,1769256641240,-348.0,0.00013125,2]
[403186176,1769256641249,-348.0,0.00013125,2]
[403186179,1769256641258,-348.0,0.00013125,2]
[403186180,1769256641268,-348.0,0.00013125,2]
[403186182,1769256641277,-348.0,0.00013125,2]
[403186185,1769256641286,-348.0,0.00013125,2]
[403186186,1769256641296,-348.0,0.00013125,2]
[403186188,1769256641306,-348.0,0.00013125,2]
[403186190,1769256641316,-348.0,0.00013125,2]
[403186192,1769256641325,-348.0,0.00013125,2]
[403186194,1769256641334,-348.0,0.00013125,2]
[403186196,1769256641344,-348.0,0.00013125,2]
[403186198,1769256641353,-348.0,0.00013125,2]
[403186200,1769256641362,-348.0,0.00013125,2]
[403186202,1769256641371,-348.0,0.00013125,2]
[403186204,1769256641379,-348.0,0.00013125,2]
[403186206,1769256641389,-348.0,0.00013125,2]
[403186208,1769256641398,-348.0,0.00013125,2]
[403186210,1769256641407,-348.0,0.00013125,2]
[403186212,1769256641417,-348.0,0.00013125,2]
[403186214,1769256641426,-348.0,0.00013125,2]
[403186216,1769256641435,-348.0,0.00013125,2]
[403186218,1769256641445,-348.0,0.00013125,2]
[403186220,1769256641454,-348.0,0.00013125,2]
[403186222,1769256641463,-348.0,0.00013125,2]
[403186224,1769256641472,-348.0,0.00013125,2]
[403186226,1769256641482,-348.0,0.00013125,2]
[403186228,1769256641491,-348.0,0.00013125,2]
[403186231,1769256641500,-348.0,0.00013125,2]
[403186232,1769256641510,-348.0,0.00013125,2]
[403186234,1769256641519,-348.0,0.00013125,2]
[403186236,1769256641528,-348.0,0.00013125,2]
[403186239,1769256641540,-348.0,0.00013125,2]
[403186241,1769256641549,-348.0,0.00013125,2]
[403186242,1769256641558,-348.0,0.00013125,2]
[403186244,1769256641567,-348.0,0.00013125,2]
[403186246,1769256641576,-200.38000856,0.00013199,2]
[403186248,1769256641585,-2579.17784983,0.00013291,2]
[403186250,1769256641594,-800.0,0.00013332,2]
[403186252,1769256641604,-800.0,0.0001337,2]
[403186254,1769256641614,-800.0,0.00013382,2]
[403186256,1769256641623,-936.0,0.000134,2]
[403186259,1769256641633,-1924.19540116,0.00013422,2]
[403186261,1769256641642,-800.0,0.00013498,2]
[403186263,1769256641651,-155.0,0.00013521,2]
[403186264,1769256641660,-2236.63,0.00013579,2]
[403186267,1769256641670,-151.0,0.000136,2]
[403186269,1769256641680,-533.88981491,0.00013665,2]
[403186270,1769256641690,-480.0,0.00013679,2]
[403186272,1769256641699,-720.0,0.0001368,2]
[403186275,1769256641709,-332.95612251,0.00013696,2]
[403186277,1769256641720,-809.59,0.00013698,2]
[403186278,1769256641730,-809.59,0.00013698,2]
[403186279,1769256641739,-809.59,0.00013698,2]
[403186280,1769256641752,-747.41671188,0.00013698,2]
[403186652,1769256645405,-62.17328812,0.00013698,2]
[403186654,1769256645415,-558.82671188,0.00013698,2]
[403187642,1769257842956,-166.34811958,0.00012589,2]
[403187644,1769257842967,-134.68772355,0.00012613,2]
[403187923,1769257845902,-798.38099735,0.00012463,2]
[403187949,1769258042745,3000.0,0.00012001,2]
[403187971,1769258229956,1000.0,0.00012001,2]